{"text_format":"2","workbook":"xlsx","n_sheets":2,"sheets":["Elektrolyseure","Vorlage für AZA"],"not_rendered":{"charts":0,"images":0,"macros":0,"external_links":0,"defined_names":0,"comments":0,"pivot_tables":0},"unopened":[],"bounds":{"document_bytes":16777216,"sheet_cells":100000,"run_cost":"one","rows_first":2000,"rows_last":500,"rows_between":2000,"halvings":0,"cell_chars":16384,"cell_head_chars":4096},"cells_cut":0,"cells_raw":0,"read":"whole","date_system":"1900"}

{"sheet":"Elektrolyseure","index":0,"n_rows":18,"n_cols":10,"rows_kept":18,"cut":false,"hidden":false,"merged":[[18,0,18,5],[4,0,4,6]]}
["Ermittlung der förderfähigen Ausgaben (EfA) für Elektrolyseure",{"$nulls":7},"ja","nein"]
[]
["Antragsteller ist vorsteuerabzugsberechtigt [Auswahlbox]:"]
["Hinweise:"]
["1. Geben Sie zuerst oben an, ob Sie vorsteuerabzugsberechtigt sind.\n2. Die Registerkarte 'Vorlage für AZA' stellt Ihre Eingaben so dar, wie sie in das easyOnline-Formular eingetragen werden müssen.\n3. Reichen Sie bitte entsprechende Angebote für die zu beschaffenden Investitionen ein.\n4. Speichern Sie das ausgefüllte Arbeitsblatt als PDF und fügen Sie es dem Antrag bei (Bei easy-online unter \"Endfassung einreichen\").\n5. Grün unterlegte Felder sind Eingabefelder."]
[]
["Position","Investition",{"$f":"IF(D3=\"nein\",\"Bruttopreis laut beigefügtem Angebot\",IF(D3=\"ja\",\"Nettopreis laut beigefügtem Angebot\",\"Bitte wählen sie aus, ob sie zum Vorsteuerabzug berechtigt sind!\"))","v":"Bitte wählen sie aus, ob sie zum Vorsteuerabzug berechtigt sind!"},"Anzahl zu beschaffender Einheiten dieser Position","Förderfähige Ausgaben ","Korrekturfeld PtJ"]
[1,null,null,null,{"$f":"IF(C8>0,D8*C8,\"\")","v":""}]
[2,null,null,null,{"$f":"IF(C9>0,D9*C9,\"\")","v":""}]
[3,null,null,null,""]
[4,null,null,null,""]
[5,null,null,null,""]
[6,null,null,null,""]
[7,null,null,null,""]
[8,null,null,null,""]
[9,null,null,null,""]
[10,null,null,null,{"$f":"IF(C17>0,D17*C17,\"\")","v":""}]
["Summe",null,null,null,{"$f":"IF(C8>0,SUM(E8:E17),\"\")","v":""}]

{"sheet":"Vorlage für AZA","index":1,"n_rows":21,"n_cols":4,"rows_kept":21,"cut":false,"hidden":false,"merged":[]}
["Hinweis:"]
["Vorlage zum Übertragen der Daten aus dieser Tabelle in den AZA-Antrag in easy-Online. "]
["Bitte kopieren Sie die Bezeichung wie hier dargestellt in das easy-Online-Formular. "]
["Der zu beschaffende Elektrolyseur muss ggf. auf die Anschaffungsjahre aufgeteilt werden."]
["Beachten Sie, dass die hier angegebene Summe mit den Gesamtmitteln im easy-Online-Antrag überein stimmen müssen."]
[{"$f":"IF(Elektrolyseure!D3=\"nein\",\"Der Antragsteller ist nicht zum Vorsteuerabzug berechtigt.\",IF(Elektrolyseure!D3=\"ja\",\"Der Antragsteller ist zum Vorsteuerabzug berechtigt.\",\"Bitte wählen sie aus, ob sie zum Vorsteuerabzug berechtigt sind!\"))","v":"Bitte wählen sie aus, ob sie zum Vorsteuerabzug berechtigt sind!"}]
[]
["Gesamtfinanzierung - Gegenstände und andere Investitionen von mehr als 800 € im Einzelfall"]
[]
["Bezeichnung","Preis € / Stück","Anzahl","F0833 Betrag €"]
[{"$f":"IF(Elektrolyseure!B8=\"\",\"\",Elektrolyseure!B8)","v":""},{"$f":"IF(Elektrolyseure!C8=\"\",\"\",Elektrolyseure!C8)","v":""},{"$f":"IF(Elektrolyseure!D8=\"\",\"\",Elektrolyseure!D8)","v":""},{"$f":"Elektrolyseure!E8","v":""}]
[{"$f":"IF(Elektrolyseure!B9=\"\",\"\",Elektrolyseure!B9)","v":""},{"$f":"IF(Elektrolyseure!C9=\"\",\"\",Elektrolyseure!C9)","v":""},{"$f":"IF(Elektrolyseure!D9=\"\",\"\",Elektrolyseure!D9)","v":""},{"$f":"Elektrolyseure!E9","v":""}]
[{"$f":"IF(Elektrolyseure!B10=\"\",\"\",Elektrolyseure!B10)","v":""},{"$f":"IF(Elektrolyseure!C10=\"\",\"\",Elektrolyseure!C10)","v":""},{"$f":"IF(Elektrolyseure!D10=\"\",\"\",Elektrolyseure!D10)","v":""},{"$f":"Elektrolyseure!E10","v":""}]
[{"$f":"IF(Elektrolyseure!B11=\"\",\"\",Elektrolyseure!B11)","v":""},{"$f":"IF(Elektrolyseure!C11=\"\",\"\",Elektrolyseure!C11)","v":""},{"$f":"IF(Elektrolyseure!D11=\"\",\"\",Elektrolyseure!D11)","v":""},{"$f":"Elektrolyseure!E11","v":""}]
[{"$f":"IF(Elektrolyseure!B12=\"\",\"\",Elektrolyseure!B12)","v":""},{"$f":"IF(Elektrolyseure!C12=\"\",\"\",Elektrolyseure!C12)","v":""},{"$f":"IF(Elektrolyseure!D12=\"\",\"\",Elektrolyseure!D12)","v":""},{"$f":"Elektrolyseure!E12","v":""}]
[{"$f":"IF(Elektrolyseure!B13=\"\",\"\",Elektrolyseure!B13)","v":""},{"$f":"IF(Elektrolyseure!C13=\"\",\"\",Elektrolyseure!C13)","v":""},{"$f":"IF(Elektrolyseure!D13=\"\",\"\",Elektrolyseure!D13)","v":""},{"$f":"Elektrolyseure!E13","v":""}]
[{"$f":"IF(Elektrolyseure!B14=\"\",\"\",Elektrolyseure!B14)","v":""},{"$f":"IF(Elektrolyseure!C14=\"\",\"\",Elektrolyseure!C14)","v":""},{"$f":"IF(Elektrolyseure!D14=\"\",\"\",Elektrolyseure!D14)","v":""},{"$f":"Elektrolyseure!E14","v":""}]
[{"$f":"IF(Elektrolyseure!B15=\"\",\"\",Elektrolyseure!B15)","v":""},{"$f":"IF(Elektrolyseure!C15=\"\",\"\",Elektrolyseure!C15)","v":""},{"$f":"IF(Elektrolyseure!D15=\"\",\"\",Elektrolyseure!D15)","v":""},{"$f":"Elektrolyseure!E15","v":""}]
[{"$f":"IF(Elektrolyseure!B16=\"\",\"\",Elektrolyseure!B16)","v":""},{"$f":"IF(Elektrolyseure!C16=\"\",\"\",Elektrolyseure!C16)","v":""},{"$f":"IF(Elektrolyseure!D16=\"\",\"\",Elektrolyseure!D16)","v":""},{"$f":"Elektrolyseure!E16","v":""}]
[{"$f":"IF(Elektrolyseure!B17=\"\",\"\",Elektrolyseure!B17)","v":""},{"$f":"IF(Elektrolyseure!C17=\"\",\"\",Elektrolyseure!C17)","v":""},{"$f":"IF(Elektrolyseure!D17=\"\",\"\",Elektrolyseure!D17)","v":""},{"$f":"Elektrolyseure!E17","v":""}]
[null,null,"Summe:",{"$f":"ROUND(SUM(D11:D20),0)","v":0}]